[Event "Titled Tuesday Blitz July 26 Late 2022"]
[White "Rego, Pedro Filipe"]
[Black "Zeynalli, Rashad"]
[WhiteFideId "1904310"]
[BlackFideId "13403320"]
[WhiteElo "2125"]
[BlackElo "2125"]
[Result "1-0"]
[Round "08"]
[TimeControl "180+1"]
[Date "2022.07.27"]
[WhiteClock "0:00:05"]
[BlackClock "0:00:02"]

1. d4 {[%clk 0:03:00]}  d5 {[%clk 0:02:59]} 2. Bf4 {[%clk 0:03:00]}  c5 {[%clk 0:02:54]} 3. e3 {[%clk 0:02:57]}  cxd4 {[%clk 0:02:54]} 4. exd4 {[%clk 0:02:58]}  Nc6 {[%clk 0:02:54]} 5. c3 {[%clk 0:02:56]}  Bf5 {[%clk 0:02:53]} 6. Bd3 {[%clk 0:02:56]}  Bxd3 {[%clk 0:02:50]} 7. Qxd3 {[%clk 0:02:57]}  e6 {[%clk 0:02:50]} 8. Nf3 {[%clk 0:02:53]}  Bd6 {[%clk 0:02:50]} 9. Bxd6 {[%clk 0:02:52]}  Qxd6 {[%clk 0:02:51]} 10. O-O {[%clk 0:02:52]}  Nge7 {[%clk 0:02:50]} 11. Nbd2 {[%clk 0:02:52]}  O-O {[%clk 0:02:46]} 12. Rfe1 {[%clk 0:02:52]}  Ng6 {[%clk 0:02:45]} 13. g3 {[%clk 0:02:36]}  Rab8 {[%clk 0:02:44]} 14. a4 {[%clk 0:02:35]}  Rfc8 {[%clk 0:02:33]} 15. h4 {[%clk 0:02:34]}  h6 {[%clk 0:02:16]} 16. h5 {[%clk 0:02:33]}  Nge7 {[%clk 0:02:15]} 17. Ne5 {[%clk 0:02:33]}  Nxe5 {[%clk 0:02:14]} 18. Rxe5 {[%clk 0:02:34]}  Nc6 {[%clk 0:02:11]} 19. Re2 {[%clk 0:02:28]}  Na5 {[%clk 0:02:09]} 20. Nf3 {[%clk 0:02:27]}  Nc4 {[%clk 0:02:04]} 21. Ne5 {[%clk 0:02:26]}  Nxe5 {[%clk 0:02:04]} 22. Rxe5 {[%clk 0:02:27]}  a6 {[%clk 0:01:54]} 23. a5 {[%clk 0:02:18]}  b5 {[%clk 0:01:54]} 24. axb6 {[%clk 0:02:18]}  Rxb6 {[%clk 0:01:54]} 25. Ra2 {[%clk 0:02:11]}  a5 {[%clk 0:01:41]} 26. Re2 {[%clk 0:02:04]}  Rcb8 {[%clk 0:01:38]} 27. Rxa5 {[%clk 0:01:57]}  Rxb2 {[%clk 0:01:31]} 28. Rxb2 {[%clk 0:01:58]}  Rxb2 {[%clk 0:01:31]} 29. Ra8+ {[%clk 0:01:58]}  Rb8 {[%clk 0:01:31]} 30. Qa6 {[%clk 0:01:51]}  Qxa6 {[%clk 0:01:21]} 31. Rxa6 {[%clk 0:01:51]}  Rc8 {[%clk 0:01:16]} 32. Ra3 {[%clk 0:01:49]}  g6 {[%clk 0:01:16]} 33. hxg6 {[%clk 0:01:43]}  fxg6 {[%clk 0:01:17]} 34. Kf1 {[%clk 0:01:43]}  h5 {[%clk 0:01:16]} 35. Ke2 {[%clk 0:01:43]}  Kf7 {[%clk 0:01:16]} 36. Kd3 {[%clk 0:01:43]}  Kf6 {[%clk 0:01:14]} 37. Ra1 {[%clk 0:01:39]}  Rb8 {[%clk 0:01:14]} 38. Ra2 {[%clk 0:01:34]}  g5 {[%clk 0:01:13]} 39. Rc2 {[%clk 0:01:29]}  h4 {[%clk 0:01:11]} 40. gxh4 {[%clk 0:01:26]}  gxh4 {[%clk 0:01:12]} 41. Ke3 {[%clk 0:01:21]}  Kf5 {[%clk 0:01:07]} 42. Kf3 {[%clk 0:01:20]}  Rc8 {[%clk 0:01:04]} 43. Rc1 {[%clk 0:01:17]}  Rc7 {[%clk 0:00:46]} 44. Rc2 {[%clk 0:01:15]}  e5 {[%clk 0:00:40]} 45. dxe5 {[%clk 0:00:47]}  d4 {[%clk 0:00:41]} 46. e6 {[%clk 0:00:42]}  dxc3 {[%clk 0:00:18]} 47. e7 {[%clk 0:00:38]}  Rxe7 {[%clk 0:00:18]} 48. Rxc3 {[%clk 0:00:39]}  Rg7 {[%clk 0:00:14]} 49. Rc5+ {[%clk 0:00:35]}  Kg6 {[%clk 0:00:14]} 50. Kg4 {[%clk 0:00:30]}  Rf7 {[%clk 0:00:13]} 51. f4 {[%clk 0:00:19]}  h3 {[%clk 0:00:11]} 52. Rg5+ {[%clk 0:00:17]}  Kf6 {[%clk 0:00:08]} 53. Rf5+ {[%clk 0:00:17]}  Ke7 {[%clk 0:00:06]} 54. Rh5 {[%clk 0:00:15]}  Rg7+ {[%clk 0:00:04]} 55. Kf5 {[%clk 0:00:13]}  Rg3 {[%clk 0:00:03]} 56. Rh7+ {[%clk 0:00:11]}  Kf8 {[%clk 0:00:02]} 57. Kf6 {[%clk 0:00:10]}  Kg8 {[%clk 0:00:02]} 58. Rh4 {[%clk 0:00:09]}  Ra3 {[%clk 0:00:01]} 59. f5 {[%clk 0:00:08]}  Ra6+ {[%clk 0:00:02]} 60. Kg5 {[%clk 0:00:07]}  Ra5 {[%clk 0:00:02]} 61. Rxh3 {[%clk 0:00:06]}  Kf7 {[%clk 0:00:02]} 62. Rh7+ {[%clk 0:00:06]}  Kf8 {[%clk 0:00:02]} 63. Rb7 {[%clk 0:00:06]}  Ra1 {[%clk 0:00:02]} 64. Kg6 {[%clk 0:00:05]} 1-0


[Site "https://www.chess.com"]

[Event "Titled Tuesday Blitz July 26 Late 2022"]
[White "Rustemov, Alexander"]
[Black "Madaminov, Mukhiddin"]
[WhiteFideId "4119002"]
[BlackFideId "14210703"]
[WhiteElo "2807"]
[BlackElo "2011"]
[Result "1-0"]
[Round "08"]
[TimeControl "180+1"]
[Date "2022.07.26"]
[WhiteClock "0:00:16"]
[BlackClock "0:00:01"]

1. d4 {[%clk 0:03:00]}  Nf6 {[%clk 0:03:00]} 2. c4 {[%clk 0:03:00]}  g6 {[%clk 0:03:00]} 3. Nf3 {[%clk 0:02:59]}  Bg7 {[%clk 0:03:00]} 4. g3 {[%clk 0:03:00]}  d5 {[%clk 0:03:00]} 5. cxd5 {[%clk 0:02:56]}  Nxd5 {[%clk 0:03:01]} 6. Bg2 {[%clk 0:02:57]}  O-O {[%clk 0:03:01]} 7. O-O {[%clk 0:02:57]}  Nb6 {[%clk 0:03:01]} 8. Nc3 {[%clk 0:02:57]}  Nc6 {[%clk 0:03:02]} 9. e3 {[%clk 0:02:57]}  e5 {[%clk 0:03:01]} 10. d5 {[%clk 0:02:56]}  Na5 {[%clk 0:03:02]} 11. e4 {[%clk 0:02:56]}  c6 {[%clk 0:03:02]} 12. b3 {[%clk 0:02:53]}  cxd5 {[%clk 0:03:00]} 13. exd5 {[%clk 0:02:51]}  e4 {[%clk 0:02:38]} 14. Nxe4 {[%clk 0:02:48]}  Bxa1 {[%clk 0:02:34]} 15. Bg5 {[%clk 0:01:59]}  f6 {[%clk 0:02:33]} 16. Bh6 {[%clk 0:01:49]}  Re8 {[%clk 0:02:32]} 17. Nfg5 {[%clk 0:01:37]}  Be5 {[%clk 0:02:24]} 18. f4 {[%clk 0:01:30]}  Bd6 {[%clk 0:01:45]} 19. Qa1 {[%clk 0:01:16]}  Nd7 {[%clk 0:01:26]} 20. Ne6 {[%clk 0:01:09]}  Qe7 {[%clk 0:00:47]} 21. f5 {[%clk 0:00:54]}  g5 {[%clk 0:00:43]} 22. h4 {[%clk 0:00:50]}  Be5 {[%clk 0:00:41]} 23. Qd1 {[%clk 0:00:44]}  Nb6 {[%clk 0:00:17]} 24. hxg5 {[%clk 0:00:42]}  Bxe6 {[%clk 0:00:17]} 25. fxe6 {[%clk 0:00:42]}  f5 {[%clk 0:00:03]} 26. Rxf5 {[%clk 0:00:42]}  Bb2 {[%clk 0:00:03]} 27. Rf7 {[%clk 0:00:42]}  Qb4 {[%clk 0:00:02]} 28. Qh5 {[%clk 0:00:29]}  Qd4+ {[%clk 0:00:02]} 29. Kh2 {[%clk 0:00:29]}  Nxd5 {[%clk 0:00:02]} 30. g6 {[%clk 0:00:21]}  Qh8 {[%clk 0:00:02]} 31. gxh7+ {[%clk 0:00:16]}  Qxh7 {[%clk 0:00:02]} 32. Rxh7 {[%clk 0:00:16]}  Kxh7 {[%clk 0:00:03]} 33. Ng5+ {[%clk 0:00:16]}  Kg8 {[%clk 0:00:01]} 34. Qf7+ {[%clk 0:00:15]}  Kh8 {[%clk 0:00:01]} 35. Qh7# {[%clk 0:00:16]} 1-0


[Site "https://www.chess.com"]

[Event "Titled Tuesday Blitz July 26 Late 2022"]
[White "Rychkov, Roman"]
[Black "Isajevsky, Anton"]
[WhiteFideId "30985595"]
[BlackFideId "4142500"]
[WhiteElo "1866"]
[BlackElo "2510"]
[Result "0-1"]
[Round "08"]
[TimeControl "180+1"]
[Date "2022.07.27"]
[WhiteClock "0:00:08"]
[BlackClock "0:00:07"]

1. e4 {[%clk 0:03:00]}  c5 {[%clk 0:02:59]} 2. Nf3 {[%clk 0:03:01]}  d6 {[%clk 0:02:59]} 3. d4 {[%clk 0:03:01]}  cxd4 {[%clk 0:03:00]} 4. Nxd4 {[%clk 0:03:02]}  Nf6 {[%clk 0:03:01]} 5. Bd3 {[%clk 0:03:02]}  e5 {[%clk 0:02:52]} 6. Nf3 {[%clk 0:03:02]}  Be7 {[%clk 0:02:08]} 7. c4 {[%clk 0:03:01]}  O-O {[%clk 0:02:07]} 8. Nc3 {[%clk 0:03:02]}  Nc6 {[%clk 0:02:04]} 9. h3 {[%clk 0:03:02]}  Be6 {[%clk 0:01:57]} 10. Be3 {[%clk 0:03:03]}  Qb8 {[%clk 0:01:45]} 11. O-O {[%clk 0:02:55]}  Rc8 {[%clk 0:01:44]} 12. b3 {[%clk 0:02:50]}  Bd8 {[%clk 0:01:44]} 13. Rc1 {[%clk 0:02:39]}  Ba5 {[%clk 0:01:42]} 14. Bb1 {[%clk 0:02:07]}  a6 {[%clk 0:01:39]} 15. Nd5 {[%clk 0:01:53]}  Bxd5 {[%clk 0:01:36]} 16. exd5 {[%clk 0:01:53]}  Ne7 {[%clk 0:01:34]} 17. Bg5 {[%clk 0:01:40]}  Ng6 {[%clk 0:01:26]} 18. Bxf6 {[%clk 0:01:02]}  gxf6 {[%clk 0:01:27]} 19. Nd2 {[%clk 0:01:00]}  Bxd2 {[%clk 0:01:16]} 20. Qxd2 {[%clk 0:01:00]}  Kh8 {[%clk 0:01:10]} 21. f4 {[%clk 0:00:57]}  exf4 {[%clk 0:00:48]} 22. Rxf4 {[%clk 0:00:57]}  Nxf4 {[%clk 0:00:30]} 23. Qxf4 {[%clk 0:00:58]}  Rg8 {[%clk 0:00:30]} 24. Qxf6+ {[%clk 0:00:39]}  Rg7 {[%clk 0:00:30]} 25. Re1 {[%clk 0:00:36]}  Qf8 {[%clk 0:00:26]} 26. Re4 {[%clk 0:00:24]}  Re8 {[%clk 0:00:25]} 27. Rh4 {[%clk 0:00:24]}  Re1+ {[%clk 0:00:24]} 28. Kh2 {[%clk 0:00:22]}  Rxb1 {[%clk 0:00:24]} 29. Rg4 {[%clk 0:00:21]}  Re1 {[%clk 0:00:17]} 30. h4 {[%clk 0:00:21]}  Re5 {[%clk 0:00:13]} 31. g3 {[%clk 0:00:08]}  h5 {[%clk 0:00:08]} 32. Rf4 {[%clk 0:00:09]}  Kh7 {[%clk 0:00:07]} 33. Rf5 {[%clk 0:00:03]}  Rg6 {[%clk 0:00:04]} 34. Qxf7+ {[%clk 0:00:01]}  Qxf7 {[%clk 0:00:05]} 35. Rxf7+ {[%clk 0:00:02]}  Rg7 {[%clk 0:00:05]} 36. Rf6 {[%clk 0:00:02]}  Re2+ {[%clk 0:00:04]} 37. Kh3 {[%clk 0:00:02]}  Re3 {[%clk 0:00:05]} 38. Rxd6 {[%clk 0:00:02]}  Rexg3+ {[%clk 0:00:05]} 39. Kh2 {[%clk 0:00:03]}  Rg2+ {[%clk 0:00:05]} 40. Kh1 {[%clk 0:00:04]}  Rxa2 {[%clk 0:00:05]} 41. Re6 {[%clk 0:00:02]}  Rf7 {[%clk 0:00:05]} 42. Kg1 {[%clk 0:00:02]}  Rd2 {[%clk 0:00:05]} 43. d6 {[%clk 0:00:02]}  Kg7 {[%clk 0:00:05]} 44. c5 {[%clk 0:00:02]}  a5 {[%clk 0:00:05]} 45. Re5 {[%clk 0:00:03]}  Kf6 {[%clk 0:00:05]} 46. Rxh5 {[%clk 0:00:03]}  Ke6 {[%clk 0:00:05]} 47. Rh6+ {[%clk 0:00:03]}  Kd7 {[%clk 0:00:05]} 48. Rh8 {[%clk 0:00:03]}  Kc6 {[%clk 0:00:02]} 49. Rc8+ {[%clk 0:00:04]}  Kb5 {[%clk 0:00:03]} 50. Rc7 {[%clk 0:00:03]}  Rf4 {[%clk 0:00:02]} 51. Rxb7+ {[%clk 0:00:03]}  Kxc5 {[%clk 0:00:02]} 52. d7 {[%clk 0:00:03]}  Kc6 {[%clk 0:00:02]} 53. Ra7 {[%clk 0:00:03]}  Rxd7 {[%clk 0:00:03]} 54. Ra6+ {[%clk 0:00:03]}  Kb5 {[%clk 0:00:02]} 55. Ra8 {[%clk 0:00:04]}  Rdd4 {[%clk 0:00:02]} 56. Rb8+ {[%clk 0:00:04]}  Kc5 {[%clk 0:00:03]} 57. Rc8+ {[%clk 0:00:05]}  Kb4 {[%clk 0:00:03]} 58. h5 {[%clk 0:00:03]}  Rh4 {[%clk 0:00:04]} 59. Rh8 {[%clk 0:00:02]}  Rd5 {[%clk 0:00:04]} 60. h6 {[%clk 0:00:03]}  Kxb3 {[%clk 0:00:03]} 61. h7 {[%clk 0:00:03]}  Ka4 {[%clk 0:00:04]} 62. Rg8 {[%clk 0:00:02]}  Rxh7 {[%clk 0:00:04]} 63. Rg4+ {[%clk 0:00:03]}  Kb5 {[%clk 0:00:04]} 64. Rg2 {[%clk 0:00:03]}  Rc5 {[%clk 0:00:04]} 65. Rb2+ {[%clk 0:00:04]}  Ka6 {[%clk 0:00:05]} 66. Ra2 {[%clk 0:00:05]}  Rb7 {[%clk 0:00:05]} 67. Kg2 {[%clk 0:00:06]}  Rf7 {[%clk 0:00:05]} 68. Kg3 {[%clk 0:00:06]}  Rc4 {[%clk 0:00:05]} 69. Kh3 {[%clk 0:00:06]}  Kb5 {[%clk 0:00:06]} 70. Rb2+ {[%clk 0:00:07]}  Rb4 {[%clk 0:00:07]} 71. Ra2 {[%clk 0:00:08]}  a4 {[%clk 0:00:07]} 0-1


[Site "https://www.chess.com"]

[Event "Titled Tuesday Blitz July 26 Late 2022"]
[White "Schekachikhin, Maksim"]
[Black "Leitao, Rafael"]
[WhiteFideId "24177830"]
[BlackFideId "2101246"]
[WhiteElo "2239"]
[BlackElo "2609"]
[Result "0-1"]
[Round "08"]
[TimeControl "180+1"]
[Date "2022.07.26"]
[WhiteClock "0:01:52"]
[BlackClock "0:01:20"]

1. d4 {[%clk 0:02:59]}  Nf6 {[%clk 0:02:59]} 2. c4 {[%clk 0:02:58]}  e6 {[%clk 0:03:00]} 3. Nc3 {[%clk 0:02:59]}  Bb4 {[%clk 0:03:00]} 4. Qc2 {[%clk 0:02:59]}  c5 {[%clk 0:02:59]} 5. dxc5 {[%clk 0:02:58]}  O-O {[%clk 0:02:59]} 6. Nf3 {[%clk 0:02:58]}  Na6 {[%clk 0:02:53]} 7. g3 {[%clk 0:02:57]}  Nxc5 {[%clk 0:02:50]} 8. Bg2 {[%clk 0:02:56]}  b6 {[%clk 0:02:40]} 9. O-O {[%clk 0:02:56]}  Bb7 {[%clk 0:02:40]} 10. Nb5 {[%clk 0:02:55]}  Nce4 {[%clk 0:02:35]} 11. Ng5 {[%clk 0:02:45]}  d5 {[%clk 0:02:24]} 12. Nxe4 {[%clk 0:02:37]}  Nxe4 {[%clk 0:02:22]} 13. Rd1 {[%clk 0:02:31]}  Qf6 {[%clk 0:02:01]} 14. Bxe4 {[%clk 0:02:30]}  dxe4 {[%clk 0:02:01]} 15. Be3 {[%clk 0:02:30]}  Rfd8 {[%clk 0:01:30]} 16. b3 {[%clk 0:02:11]}  a6 {[%clk 0:01:25]} 17. a3 {[%clk 0:01:52]}  axb5 {[%clk 0:01:20]} 0-1


[Site "https://www.chess.com"]

[Event "Titled Tuesday Blitz July 26 Late 2022"]
[White "Schwabeneder, Florian"]
[Black "Golubev, Mikhail"]
[WhiteFideId "1626191"]
[BlackFideId "14100983"]
[WhiteElo "2275"]
[BlackElo "2374"]
[Result "0-1"]
[Round "08"]
[TimeControl "180+1"]
[Date "2022.07.26"]
[WhiteClock "0:00:05"]
[BlackClock "0:00:08"]

1. e4 {[%clk 0:03:00]}  c5 {[%clk 0:02:59]} 2. Nf3 {[%clk 0:03:00]}  d6 {[%clk 0:02:59]} 3. c3 {[%clk 0:03:00]}  Nf6 {[%clk 0:02:58]} 4. Be2 {[%clk 0:02:58]}  Nc6 {[%clk 0:02:52]} 5. d4 {[%clk 0:02:57]}  cxd4 {[%clk 0:02:43]} 6. cxd4 {[%clk 0:02:58]}  d5 {[%clk 0:02:36]} 7. e5 {[%clk 0:02:58]}  Ne4 {[%clk 0:02:36]} 8. O-O {[%clk 0:02:58]}  e6 {[%clk 0:02:21]} 9. Be3 {[%clk 0:02:57]}  Be7 {[%clk 0:02:19]} 10. Ne1 {[%clk 0:02:55]}  f5 {[%clk 0:02:13]} 11. exf6 {[%clk 0:02:45]}  Nxf6 {[%clk 0:02:11]} 12. Nc3 {[%clk 0:02:43]}  Bd6 {[%clk 0:02:07]} 13. Nf3 {[%clk 0:02:35]}  O-O {[%clk 0:02:05]} 14. Bg5 {[%clk 0:02:32]}  Qe8 {[%clk 0:02:00]} 15. Bh4 {[%clk 0:02:27]}  Nh5 {[%clk 0:01:53]} 16. Bg3 {[%clk 0:02:21]}  Nf4 {[%clk 0:01:44]} 17. Bb5 {[%clk 0:02:15]}  Bd7 {[%clk 0:01:37]} 18. Re1 {[%clk 0:02:12]}  Qg6 {[%clk 0:01:31]} 19. Bxc6 {[%clk 0:02:06]}  Bxc6 {[%clk 0:01:31]} 20. Ne5 {[%clk 0:02:06]}  Bxe5 {[%clk 0:01:30]} 21. Rxe5 {[%clk 0:02:05]}  Nd3 {[%clk 0:01:04]} 22. Re2 {[%clk 0:02:00]}  Rae8 {[%clk 0:01:04]} 23. Qd2 {[%clk 0:01:54]}  e5 {[%clk 0:01:04]} 24. dxe5 {[%clk 0:01:20]}  d4 {[%clk 0:01:03]} 25. Nb1 {[%clk 0:01:00]}  Nf4 {[%clk 0:01:00]} 26. Na3 {[%clk 0:00:48]}  Nxg2 {[%clk 0:00:47]} 27. Qxd4 {[%clk 0:00:43]}  Nf4 {[%clk 0:00:41]} 28. Rd2 {[%clk 0:00:39]}  Ne6 {[%clk 0:00:27]} 29. Qe3 {[%clk 0:00:23]}  Ng5 {[%clk 0:00:21]} 30. f4 {[%clk 0:00:20]}  Nh3+ {[%clk 0:00:19]} 31. Kf1 {[%clk 0:00:18]}  Qg4 {[%clk 0:00:13]} 32. Ke1 {[%clk 0:00:17]}  Nxf4 {[%clk 0:00:12]} 33. Rd4 {[%clk 0:00:15]}  Ng2+ {[%clk 0:00:11]} 34. Kd2 {[%clk 0:00:15]}  Nxe3 {[%clk 0:00:12]} 35. Rxg4 {[%clk 0:00:16]}  Nxg4 {[%clk 0:00:12]} 36. Nc4 {[%clk 0:00:17]}  Bd5 {[%clk 0:00:11]} 37. Nd6 {[%clk 0:00:17]}  Nxe5 {[%clk 0:00:12]} 38. Nxe8 {[%clk 0:00:16]}  Rxe8 {[%clk 0:00:12]} 39. Kc3 {[%clk 0:00:16]}  Nf3 {[%clk 0:00:12]} 40. b3 {[%clk 0:00:14]}  Bc6 {[%clk 0:00:12]} 41. Kc4 {[%clk 0:00:14]}  h6 {[%clk 0:00:12]} 42. a4 {[%clk 0:00:13]}  Rf8 {[%clk 0:00:12]} 43. Kc5 {[%clk 0:00:13]}  a6 {[%clk 0:00:12]} 44. Rd1 {[%clk 0:00:12]}  Rf7 {[%clk 0:00:12]} 45. Kb6 {[%clk 0:00:11]}  Kh7 {[%clk 0:00:12]} 46. Rd8 {[%clk 0:00:10]}  h5 {[%clk 0:00:12]} 47. b4 {[%clk 0:00:07]}  h4 {[%clk 0:00:11]} 48. Bd6 {[%clk 0:00:06]}  Bxa4 {[%clk 0:00:11]} 49. Bc5 {[%clk 0:00:05]}  Bc6 {[%clk 0:00:11]} 50. h3 {[%clk 0:00:06]}  Ne5 {[%clk 0:00:11]} 51. Bd4 {[%clk 0:00:06]}  Nc4+ {[%clk 0:00:11]} 52. Kc5 {[%clk 0:00:06]}  Nd2 {[%clk 0:00:11]} 53. Be5 {[%clk 0:00:05]}  Ne4+ {[%clk 0:00:10]} 54. Kd4 {[%clk 0:00:05]}  Ng3 {[%clk 0:00:08]} 55. Ke3 {[%clk 0:00:04]}  Re7 {[%clk 0:00:08]} 56. Kf4 {[%clk 0:00:05]}  Nh5+ {[%clk 0:00:07]} 57. Kf5 {[%clk 0:00:05]}  g6+ {[%clk 0:00:08]} 58. Kg5 {[%clk 0:00:04]}  Rxe5+ {[%clk 0:00:08]} 59. Kxh4 {[%clk 0:00:05]}  Ng7 {[%clk 0:00:08]} 0-1


[Site "https://www.chess.com"]

[Event "Titled Tuesday Blitz July 26 Late 2022"]
[White "Shohat, Yotam"]
[Black "Keller, Peter"]
[WhiteFideId "2813955"]
[BlackFideId "1272105"]
[WhiteElo "2119"]
[BlackElo "2275"]
[Result "0-1"]
[Round "08"]
[TimeControl "180+1"]
[Date "2022.07.27"]
[WhiteClock "0:00:03"]
[BlackClock "0:00:24"]

1. c4 {[%clk 0:03:00]}  e5 {[%clk 0:02:52]} 2. Nc3 {[%clk 0:03:00]}  Bb4 {[%clk 0:02:52]} 3. Nd5 {[%clk 0:02:59]}  Be7 {[%clk 0:02:52]} 4. d4 {[%clk 0:02:55]}  d6 {[%clk 0:02:53]} 5. e4 {[%clk 0:02:49]}  Nf6 {[%clk 0:02:50]} 6. Nxe7 {[%clk 0:02:49]}  Qxe7 {[%clk 0:02:51]} 7. f3 {[%clk 0:02:49]}  O-O {[%clk 0:02:35]} 8. Ne2 {[%clk 0:02:45]}  a5 {[%clk 0:02:17]} 9. Be3 {[%clk 0:02:35]}  c5 {[%clk 0:02:07]} 10. dxc5 {[%clk 0:02:03]}  dxc5 {[%clk 0:02:07]} 11. Qb3 {[%clk 0:01:55]}  Nc6 {[%clk 0:02:06]} 12. O-O-O {[%clk 0:01:43]}  Nd4 {[%clk 0:02:06]} 13. Qc3 {[%clk 0:01:30]}  Be6 {[%clk 0:01:59]} 14. a4 {[%clk 0:01:18]}  Qe8 {[%clk 0:01:24]} 15. b3 {[%clk 0:01:16]}  b5 {[%clk 0:01:23]} 16. axb5 {[%clk 0:01:07]}  a4 {[%clk 0:01:24]} 17. bxa4 {[%clk 0:01:03]}  Rxa4 {[%clk 0:01:24]} 18. Ng3 {[%clk 0:00:48]}  Qa8 {[%clk 0:01:16]} 19. Kb1 {[%clk 0:00:40]}  Ra3 {[%clk 0:01:13]} 20. Bxd4 {[%clk 0:00:22]}  cxd4 {[%clk 0:01:06]} 21. Qb2 {[%clk 0:00:16]}  Qa4 {[%clk 0:01:05]} 22. Rd3 {[%clk 0:00:17]}  Rxd3 {[%clk 0:00:41]} 23. Bxd3 {[%clk 0:00:18]}  Bxc4 {[%clk 0:00:41]} 24. Bxc4 {[%clk 0:00:16]}  Qxc4 {[%clk 0:00:42]} 25. Rd1 {[%clk 0:00:06]}  g6 {[%clk 0:00:38]} 26. f4 {[%clk 0:00:02]}  Rb8 {[%clk 0:00:27]} 27. fxe5 {[%clk 0:00:01]}  Rxb5 {[%clk 0:00:27]} 28. exf6 {[%clk 0:00:02]}  Rxb2+ {[%clk 0:00:27]} 29. Kxb2 {[%clk 0:00:03]}  Qb4+ {[%clk 0:00:24]} 0-1


[Site "https://www.chess.com"]

[Event "Titled Tuesday Blitz July 26 Late 2022"]
[White "Silva, Miguel Antonio Neto"]
[Black "Ismagilov, Damir"]
[WhiteFideId "1911929"]
[BlackFideId "34199982"]
[WhiteElo "2223"]
[BlackElo "2138"]
[Result "0-1"]
[Round "08"]
[TimeControl "180+1"]
[Date "2022.07.26"]
[WhiteClock "0:00:03"]
[BlackClock "0:00:26"]

1. Nf3 {[%clk 0:03:00]}  d5 {[%clk 0:02:57]} 2. d4 {[%clk 0:03:00]}  c6 {[%clk 0:02:53]} 3. c4 {[%clk 0:02:59]}  e6 {[%clk 0:02:52]} 4. Nc3 {[%clk 0:02:57]}  dxc4 {[%clk 0:02:51]} 5. a4 {[%clk 0:02:44]}  Bb4 {[%clk 0:02:48]} 6. e3 {[%clk 0:02:43]}  b5 {[%clk 0:02:46]} 7. Bd2 {[%clk 0:02:37]}  Bb7 {[%clk 0:02:43]} 8. Ne5 {[%clk 0:02:30]}  Nf6 {[%clk 0:02:29]} 9. Be2 {[%clk 0:02:23]}  O-O {[%clk 0:02:26]} 10. Bf3 {[%clk 0:02:21]}  Bxc3 {[%clk 0:02:22]} 11. bxc3 {[%clk 0:02:18]}  a6 {[%clk 0:02:21]} 12. Rb1 {[%clk 0:02:13]}  Qc7 {[%clk 0:02:14]} 13. O-O {[%clk 0:02:09]}  Nbd7 {[%clk 0:02:13]} 14. Nxd7 {[%clk 0:01:59]}  Qxd7 {[%clk 0:02:14]} 15. e4 {[%clk 0:01:59]}  c5 {[%clk 0:02:11]} 16. e5 {[%clk 0:01:44]}  Bxf3 {[%clk 0:02:05]} 17. Qxf3 {[%clk 0:01:43]}  Nd5 {[%clk 0:02:05]} 18. Qg3 {[%clk 0:01:32]}  Kh8 {[%clk 0:02:03]} 19. dxc5 {[%clk 0:01:10]}  bxa4 {[%clk 0:02:00]} 20. Qg4 {[%clk 0:01:03]}  Qc7 {[%clk 0:01:49]} 21. Qxc4 {[%clk 0:01:01]}  Qxe5 {[%clk 0:01:48]} 22. Rfe1 {[%clk 0:00:56]}  Qc7 {[%clk 0:01:43]} 23. Be3 {[%clk 0:00:53]}  Nxe3 {[%clk 0:01:37]} 24. Rxe3 {[%clk 0:00:51]}  Rfc8 {[%clk 0:01:37]} 25. Qxa4 {[%clk 0:00:47]}  Qxc5 {[%clk 0:01:35]} 26. h3 {[%clk 0:00:45]}  Ra7 {[%clk 0:01:29]} 27. Rd3 {[%clk 0:00:34]}  Qe7 {[%clk 0:01:24]} 28. Rbd1 {[%clk 0:00:33]}  h6 {[%clk 0:01:22]} 29. Rd7 {[%clk 0:00:31]}  Rxd7 {[%clk 0:01:21]} 30. Rxd7 {[%clk 0:00:30]}  Qf6 {[%clk 0:01:21]} 31. Qxa6 {[%clk 0:00:26]}  Rxc3 {[%clk 0:01:19]} 32. Qa8+ {[%clk 0:00:26]}  Kh7 {[%clk 0:01:19]} 33. Qe4+ {[%clk 0:00:26]}  g6 {[%clk 0:01:10]} 34. Qd4 {[%clk 0:00:22]}  Qxd4 {[%clk 0:01:01]} 35. Rxd4 {[%clk 0:00:20]}  Kg7 {[%clk 0:01:01]} 36. g3 {[%clk 0:00:21]}  e5 {[%clk 0:00:59]} 37. Ra4 {[%clk 0:00:19]}  Rc5 {[%clk 0:00:58]} 38. Kg2 {[%clk 0:00:19]}  h5 {[%clk 0:00:58]} 39. Rb4 {[%clk 0:00:20]}  f5 {[%clk 0:00:57]} 40. h4 {[%clk 0:00:20]}  e4 {[%clk 0:00:58]} 41. Rb6 {[%clk 0:00:20]}  Rc2 {[%clk 0:00:55]} 42. Kf1 {[%clk 0:00:20]}  Rc7 {[%clk 0:00:52]} 43. Rd6 {[%clk 0:00:20]}  Re7 {[%clk 0:00:51]} 44. Rc6 {[%clk 0:00:19]}  Kf7 {[%clk 0:00:51]} 45. Ke2 {[%clk 0:00:19]}  Re6 {[%clk 0:00:52]} 46. Rc8 {[%clk 0:00:19]}  Ra6 {[%clk 0:00:49]} 47. Rc5 {[%clk 0:00:16]}  Kf6 {[%clk 0:00:49]} 48. Rb5 {[%clk 0:00:16]}  Ra2+ {[%clk 0:00:48]} 49. Ke3 {[%clk 0:00:16]}  Ra3+ {[%clk 0:00:45]} 50. Ke2 {[%clk 0:00:16]}  Rf3 {[%clk 0:00:44]} 51. Rb6+ {[%clk 0:00:15]}  Kg7 {[%clk 0:00:43]} 52. Rb7+ {[%clk 0:00:15]}  Kh6 {[%clk 0:00:43]} 53. Rb6 {[%clk 0:00:14]}  f4 {[%clk 0:00:41]} 54. gxf4 {[%clk 0:00:06]}  Rxf4 {[%clk 0:00:42]} 55. Re6 {[%clk 0:00:05]}  Rxh4 {[%clk 0:00:41]} 56. Ke3 {[%clk 0:00:06]}  Rg4 {[%clk 0:00:40]} 57. Rf6 {[%clk 0:00:05]}  h4 {[%clk 0:00:36]} 58. Rf8 {[%clk 0:00:06]}  g5 {[%clk 0:00:35]} 59. Rg8 {[%clk 0:00:06]}  Rg2 {[%clk 0:00:33]} 60. Rf8 {[%clk 0:00:04]}  Rg4 {[%clk 0:00:26]} 61. Rg8 {[%clk 0:00:04]}  Kh7 {[%clk 0:00:27]} 62. Rf8 {[%clk 0:00:03]}  h3 {[%clk 0:00:26]} 0-1


[Site "https://www.chess.com"]